[Event "*** Titled Tuesday Blitz"]
[Site "Chess.com"]
[Date "2018.09.04"]
[Round "3"]
[White "wonderfultime"]
[Black "ahmadzada13"]
[Result "1-0"]
[WhiteElo "2824"]
[BlackElo "2623"]
[TimeControl "180+2"]
[EndTime "14:15:36 PDT"]
[Termination "wonderfultime won by resignation"]

1. d4 {[%clk 0:03:01.9]} 1... Nf6 {[%clk 0:03:00.5]} 2. Nf3 {[%clk 0:03:01.8]}
2... e6 {[%clk 0:03:00.7]} 3. Bf4 {[%clk 0:03:01.7]} 3... c5 {[%clk 0:02:58.4]}
4. c3 {[%clk 0:03:02.7]} 4... Nc6 {[%clk 0:02:55.8]} 5. e3 {[%clk 0:03:03.8]}
5... b6 {[%clk 0:02:53.5]} 6. Bd3 {[%clk 0:03:04.3]} 6... Bb7 {[%clk 0:02:51.9]}
7. h3 {[%clk 0:03:05]} 7... Be7 {[%clk 0:02:48.5]} 8. Nbd2 {[%clk 0:03:05.7]}
8... O-O {[%clk 0:02:44.7]} 9. O-O {[%clk 0:03:06.7]} 9... Nd5 {[%clk
0:02:41.8]} 10. Bh2 {[%clk 0:03:07.4]} 10... cxd4 {[%clk 0:02:37.4]} 11. exd4
{[%clk 0:03:02.8]} 11... f5 {[%clk 0:02:35.4]} 12. Re1 {[%clk 0:02:53.7]} 12...
g5 {[%clk 0:02:28.5]} 13. a3 {[%clk 0:02:46.6]} 13... f4 {[%clk 0:02:10.9]} 14.
Qc2 {[%clk 0:02:16.3]} 14... Rf7 {[%clk 0:02:09.1]} 15. c4 {[%clk 0:02:17.2]}
15... Nc7 {[%clk 0:02:04]} 16. d5 {[%clk 0:02:04.2]} 16... Nb8 {[%clk
0:01:51.5]} 17. dxe6 {[%clk 0:01:16]} 17... Nxe6 {[%clk 0:01:46.8]} 18. Be4
{[%clk 0:01:13]} 18... Nc6 {[%clk 0:01:43.8]} 19. Rad1 {[%clk 0:01:11.2]} 19...
Qc8 {[%clk 0:01:37.9]} 20. Bd5 {[%clk 0:00:53.9]} 20... Ncd4 {[%clk 0:01:29.5]}
21. Nxd4 {[%clk 0:00:51.4]} 21... Bxd5 {[%clk 0:01:27.9]} 22. Nf5 {[%clk
0:00:21.7]} 22... Bf8 {[%clk 0:01:22.8]} 23. Qb1 {[%clk 0:00:18.4]} 23... Bc6
{[%clk 0:01:18.2]} 24. Nf3 {[%clk 0:00:15.9]} 24... Bxf3 {[%clk 0:01:11.3]} 25.
gxf3 {[%clk 0:00:17.8]} 25... Qc5 {[%clk 0:01:07.9]} 26. Rd5 {[%clk 0:00:16.6]}
26... Qxc4 {[%clk 0:01:08.3]} 27. Red1 {[%clk 0:00:16.5]} 27... Qa4 {[%clk
0:00:54.9]} 28. h4 {[%clk 0:00:13.5]} 28... Rc8 {[%clk 0:00:50.9]} 29. hxg5
{[%clk 0:00:12.9]} 29... Nxg5 {[%clk 0:00:51.3]} 30. Kg2 {[%clk 0:00:09.3]}
30... Qb3 {[%clk 0:00:47.8]} 31. R1d3 {[%clk 0:00:07.6]} 31... Qc2 {[%clk
0:00:45.3]} 32. Qxc2 {[%clk 0:00:08.3]} 32... Rxc2 {[%clk 0:00:47.2]} 33. Bxf4
{[%clk 0:00:10]} 33... Ne6 {[%clk 0:00:42.8]} 34. Be3 {[%clk 0:00:06.6]} 34...
Rxb2 {[%clk 0:00:37.1]} 35. Kg3 {[%clk 0:00:07.4]} 35... Ra2 {[%clk 0:00:33.4]}
36. Kg4 {[%clk 0:00:03.8]} 36... Rc2 {[%clk 0:00:27]} 37. Kg3 {[%clk 0:00:04.2]}
37... Rf6 {[%clk 0:00:24.6]} 38. f4 {[%clk 0:00:03.1]} 38... Nc5 {[%clk
0:00:23.1]} 39. Bxc5 {[%clk 0:00:02.6]} 39... Rxc5 {[%clk 0:00:21.4]} 40. Ne3
{[%clk 0:00:04.5]} 40... Rg6+ {[%clk 0:00:21.3]} 41. Kf3 {[%clk 0:00:05.3]}
41... Rxd5 {[%clk 0:00:22.5]} 42. Nxd5 {[%clk 0:00:07.2]} 42... Rd6 {[%clk
0:00:20.5]} 43. Ke4 {[%clk 0:00:08.5]} 43... Re6+ {[%clk 0:00:20.8]} 44. Kf5
{[%clk 0:00:09.5]} 44... Kf7 {[%clk 0:00:22.3]} 45. Rh3 {[%clk 0:00:09.5]} 45...
h6 {[%clk 0:00:21.6]} 46. Rc3 {[%clk 0:00:10.4]} 46... Rd6 {[%clk 0:00:22.5]}
47. Ne3 {[%clk 0:00:10.8]} 47... Rf6+ {[%clk 0:00:22.3]} 48. Ke4 {[%clk
0:00:11.6]} 48... Re6+ {[%clk 0:00:23.2]} 49. Kf3 {[%clk 0:00:13]} 49... Bc5
{[%clk 0:00:23.8]} 50. Ng4 {[%clk 0:00:13.4]} 50... d6 {[%clk 0:00:20.8]} 51. f5
{[%clk 0:00:13.2]} 51... Re1 {[%clk 0:00:22.2]} 52. Nxh6+ {[%clk 0:00:14.2]}
52... Kf6 {[%clk 0:00:23.6]} 53. Kf4 {[%clk 0:00:14.6]} 53... d5 {[%clk
0:00:15.8]} 54. Ng4+ {[%clk 0:00:15.8]} 54... Kf7 {[%clk 0:00:15.7]} 55. Rh3
{[%clk 0:00:16]} 55... Kg7 {[%clk 0:00:07.4]} 56. Kg5 {[%clk 0:00:17.2]} 56...
Be7+ {[%clk 0:00:05]} 57. f6+ {[%clk 0:00:14.9]} 57... Bxf6+ {[%clk 0:00:04.4]}
58. Nxf6 {[%clk 0:00:16.8]} 58... Rg1+ {[%clk 0:00:05.4]} 59. Kf4 {[%clk
0:00:18.7]} 59... Kxf6 {[%clk 0:00:05.9]} 60. Rh7 {[%clk 0:00:14.6]} 60... Rg7
{[%clk 0:00:06.9]} 61. Rh6+ {[%clk 0:00:15.4]} 61... Ke7 {[%clk 0:00:07.5]} 62.
Ke5 {[%clk 0:00:15.6]} 62... Rf7 {[%clk 0:00:08.4]} 63. f4 {[%clk 0:00:16.1]}
63... d4 {[%clk 0:00:07.6]} 64. Re6+ {[%clk 0:00:17]} 64... Kd7 {[%clk
0:00:08.1]} 65. Rd6+ {[%clk 0:00:18.1]} 65... Kc7 {[%clk 0:00:08.8]} 66. Rxd4
{[%clk 0:00:20]} 66... Kc6 {[%clk 0:00:08.8]} 67. Ke6 {[%clk 0:00:20.4]} 67...
Rh7 {[%clk 0:00:08.9]} 68. f5 {[%clk 0:00:21.8]} 68... Kc5 {[%clk 0:00:10.5]}
69. Rd7 {[%clk 0:00:21.4]} 69... Rh6+ {[%clk 0:00:09]} 70. f6 {[%clk 0:00:22.8]}
70... a5 {[%clk 0:00:10.4]} 71. Ke7 {[%clk 0:00:15.3]} 71... b5 {[%clk
0:00:08.8]} 72. Rc7+ {[%clk 0:00:15.9]} 72... Kd4 {[%clk 0:00:08.2]} 73. Ra7
{[%clk 0:00:13.9]} 73... a4 {[%clk 0:00:03.7]} 74. f7 {[%clk 0:00:14.3]} 74...
Rh7 {[%clk 0:00:05]} 75. Kd6 {[%clk 0:00:13.9]} 75... Rh6+ {[%clk 0:00:04.5]}
76. Ke7 {[%clk 0:00:14.2]} 76... Rh7 {[%clk 0:00:05.6]} 77. Kf6 {[%clk
0:00:15.3]} 77... Rxf7+ {[%clk 0:00:04.8]} 78. Rxf7 {[%clk 0:00:14.9]} 78... Kc3
{[%clk 0:00:05.6]} 79. Ke5 {[%clk 0:00:15.4]} 79... Kb3 {[%clk 0:00:07.1]} 80.
Rf3+ {[%clk 0:00:15.5]} 80... Kc4 {[%clk 0:00:06.9]} 81. Rh3 {[%clk 0:00:14.7]}
81... b4 {[%clk 0:00:06.2]} 82. Rh4+ {[%clk 0:00:16.1]} 82... Kb3 {[%clk
0:00:07.7]} 83. axb4 {[%clk 0:00:18]} 83... a3 {[%clk 0:00:08.6]} 84. b5 {[%clk
0:00:19.6]} 84... a2 {[%clk 0:00:09.4]} 85. Rh1 {[%clk 0:00:20.8]} 1-0

[Event "*** Titled Tuesday Blitz"]
[Site "Chess.com"]
[Date "2018.09.04"]
[Round "3"]
[White "51616516516"]
[Black "NemtsevIgor"]
[Result "1/2-1/2"]
[WhiteElo "2210"]
[BlackElo "2393"]
[TimeControl "180+2"]
[EndTime "14:16:27 PDT"]
[Termination "Game drawn - insufficient material"]

1. d4 {[%clk 0:02:50.9]} 1... c6 {[%clk 0:03:00.3]} 2. c4 {[%clk 0:02:46.5]}
2... d6 {[%clk 0:03:01.3]} 3. Nc3 {[%clk 0:02:48.4]} 3... Nd7 {[%clk 0:03:01.7]}
4. Nf3 {[%clk 0:02:49]} 4... h6 {[%clk 0:03:02.7]} 5. g3 {[%clk 0:02:50]} 5...
g5 {[%clk 0:03:03.1]} 6. h3 {[%clk 0:02:49.7]} 6... Bg7 {[%clk 0:03:03.6]} 7.
Bg2 {[%clk 0:02:51]} 7... Nf8 {[%clk 0:03:04.4]} 8. O-O {[%clk 0:02:51.2]} 8...
Ng6 {[%clk 0:03:05.2]} 9. e4 {[%clk 0:02:47.7]} 9... g4 {[%clk 0:03:04.5]} 10.
hxg4 {[%clk 0:02:42.2]} 10... Bxg4 {[%clk 0:03:05.3]} 11. Qc2 {[%clk 0:02:41.8]}
11... Bxf3 {[%clk 0:03:03.1]} 12. Bxf3 {[%clk 0:02:42.1]} 12... Bxd4 {[%clk
0:03:04.6]} 13. Ne2 {[%clk 0:02:21.2]} 13... Be5 {[%clk 0:03:02.8]} 14. Kg2
{[%clk 0:02:16.8]} 14... h5 {[%clk 0:02:59.5]} 15. Rh1 {[%clk 0:02:12.2]} 15...
h4 {[%clk 0:02:59.1]} 16. Bg5 {[%clk 0:02:09.2]} 16... Nf6 {[%clk 0:02:36.2]}
17. gxh4 {[%clk 0:01:54.5]} 17... Rg8 {[%clk 0:02:34.6]} 18. Kf1 {[%clk
0:01:51.1]} 18... Qb6 {[%clk 0:02:27.4]} 19. Rb1 {[%clk 0:01:38.6]} 19... O-O-O
{[%clk 0:02:20.9]} 20. h5 {[%clk 0:01:34.4]} 20... Nf8 {[%clk 0:02:15.1]} 21.
Be3 {[%clk 0:01:35.1]} 21... c5 {[%clk 0:01:58]} 22. b4 {[%clk 0:01:34.9]} 22...
Qc7 {[%clk 0:01:58.9]} 23. bxc5 {[%clk 0:01:30.7]} 23... dxc5 {[%clk 0:01:59.7]}
24. Qa4 {[%clk 0:01:27.8]} 24... b6 {[%clk 0:01:50.7]} 25. h6 {[%clk 0:01:18.5]}
25... Rh8 {[%clk 0:01:45.7]} 26. Qa6+ {[%clk 0:01:14]} 26... Kb8 {[%clk
0:01:45]} 27. a4 {[%clk 0:01:13.8]} 27... Qc8 {[%clk 0:01:20.9]} 28. Qb5 {[%clk
0:00:59.7]} 28... Qd7 {[%clk 0:01:19.8]} 29. Qb3 {[%clk 0:00:44.3]} 29... Qd3
{[%clk 0:01:15.6]} 30. Qb5 {[%clk 0:00:25.6]} 30... Rg8 {[%clk 0:01:05.6]} 31.
Re1 {[%clk 0:00:03.3]} 31... Ne6 {[%clk 0:00:48.2]} 32. a5 {[%clk 0:00:04]}
32... Rd6 {[%clk 0:00:46.1]} 33. axb6 {[%clk 0:00:04.6]} 33... axb6 {[%clk
0:00:47.4]} 34. h7 {[%clk 0:00:04.3]} 34... Rh8 {[%clk 0:00:47.1]} 35. Qb1
{[%clk 0:00:05]} 35... Qxb1 {[%clk 0:00:43.1]} 36. Rxb1 {[%clk 0:00:06.9]} 36...
Rxh7 {[%clk 0:00:44.2]} 37. Rxh7 {[%clk 0:00:07.6]} 37... Nxh7 {[%clk
0:00:45.4]} 38. Bg4 {[%clk 0:00:08.5]} 38... Nf6 {[%clk 0:00:43.3]} 39. Bxe6
{[%clk 0:00:09.2]} 39... Rxe6 {[%clk 0:00:44.6]} 40. Bxc5 {[%clk 0:00:10.2]}
40... Nxe4 {[%clk 0:00:40.8]} 41. Rxb6+ {[%clk 0:00:10.4]} 41... Rxb6 {[%clk
0:00:39.2]} 42. Bxb6 {[%clk 0:00:12.3]} 42... Nd2+ {[%clk 0:00:40.6]} 43. Kg2
{[%clk 0:00:13.6]} 43... Nxc4 {[%clk 0:00:42.5]} 44. Bc5 {[%clk 0:00:14.3]}
44... e6 {[%clk 0:00:42.3]} 45. Bd4 {[%clk 0:00:11.2]} 45... Bxd4 {[%clk
0:00:39.1]} 46. Nxd4 {[%clk 0:00:13.1]} 46... Kc7 {[%clk 0:00:39.8]} 47. Nf3
{[%clk 0:00:12.4]} 47... Kd6 {[%clk 0:00:40.1]} 48. Ng5 {[%clk 0:00:13.4]} 48...
f5 {[%clk 0:00:38.4]} 49. f4 {[%clk 0:00:11.3]} 49... Kd5 {[%clk 0:00:35.7]} 50.
Kf3 {[%clk 0:00:11.5]} 50... Nd2+ {[%clk 0:00:36.3]} 51. Ke3 {[%clk 0:00:12.4]}
51... Ne4 {[%clk 0:00:36.1]} 52. Nf3 {[%clk 0:00:08.6]} 52... Nf6 {[%clk
0:00:35.3]} 53. Ng5 {[%clk 0:00:07.6]} 53... Ng4+ {[%clk 0:00:33.9]} 54. Kf3
{[%clk 0:00:08.8]} 54... Nf6 {[%clk 0:00:32.1]} 55. Ke3 {[%clk 0:00:09.6]} 55...
Nh5 {[%clk 0:00:32.9]} 56. Kf3 {[%clk 0:00:09]} 56... Ng7 {[%clk 0:00:33.9]} 57.
Ke3 {[%clk 0:00:09.7]} 57... Ne8 {[%clk 0:00:34.8]} 58. Kf3 {[%clk 0:00:09.8]}
58... Nd6 {[%clk 0:00:35.4]} 59. Ke3 {[%clk 0:00:10.8]} 59... Nc4+ {[%clk
0:00:35.8]} 60. Kf3 {[%clk 0:00:11.9]} 60... Na5 {[%clk 0:00:35.7]} 61. Ke3
{[%clk 0:00:12.8]} 61... Nc6 {[%clk 0:00:36.8]} 62. Kf3 {[%clk 0:00:13.7]} 62...
Nd4+ {[%clk 0:00:37]} 63. Ke3 {[%clk 0:00:14.9]} 63... Nc6 {[%clk 0:00:36.5]}
64. Kf3 {[%clk 0:00:15.8]} 64... Nd8 {[%clk 0:00:34.6]} 65. Ke3 {[%clk
0:00:16.7]} 65... Kd6 {[%clk 0:00:35.6]} 66. Nh7 {[%clk 0:00:15.7]} 66... Ke7
{[%clk 0:00:36.4]} 67. Ng5 {[%clk 0:00:15.1]} 67... Kf6 {[%clk 0:00:37.6]} 68.
Nf3 {[%clk 0:00:16.2]} 68... Nc6 {[%clk 0:00:38.1]} 69. Nd2 {[%clk 0:00:10.5]}
69... Kg6 {[%clk 0:00:38.8]} 70. Nc4 {[%clk 0:00:10.1]} 70... Kh5 {[%clk
0:00:36.8]} 71. Nd6 {[%clk 0:00:09.4]} 71... Kg4 {[%clk 0:00:36.7]} 72. Nf7
{[%clk 0:00:09.8]} 72... Nb4 {[%clk 0:00:34.8]} 73. Ne5+ {[%clk 0:00:09.8]}
73... Kg3 {[%clk 0:00:35.6]} 74. Ng6 {[%clk 0:00:03.4]} 74... Nd5+ {[%clk
0:00:36.5]} 75. Kd4 {[%clk 0:00:03.6]} 75... Nxf4 {[%clk 0:00:37.8]} 76. Ne7
{[%clk 0:00:02.8]} 76... Kg4 {[%clk 0:00:34.6]} 77. Ke5 {[%clk 0:00:03]} 77...
Nd3+ {[%clk 0:00:34.2]} 78. Kxe6 {[%clk 0:00:03.9]} 78... f4 {[%clk 0:00:35.7]}
79. Nd5 {[%clk 0:00:04.9]} 79... f3 {[%clk 0:00:36.4]} 80. Ne3+ {[%clk
0:00:05.5]} 80... Kf4 {[%clk 0:00:36.9]} 81. Nf1 {[%clk 0:00:06.8]} 81... Nb2
{[%clk 0:00:32]} 82. Kd5 {[%clk 0:00:07.5]} 82... Nd1 {[%clk 0:00:32.9]} 83. Kd4
{[%clk 0:00:07.9]} 83... f2 {[%clk 0:00:32.9]} 84. Kd3 {[%clk 0:00:08.7]} 84...
Kf3 {[%clk 0:00:33.7]} 85. Kd2 {[%clk 0:00:09.3]} 85... Nb2 {[%clk 0:00:33.5]}
86. Kc2 {[%clk 0:00:06.4]} 86... Nc4 {[%clk 0:00:32.1]} 87. Kd3 {[%clk
0:00:07.6]} 87... Ne5+ {[%clk 0:00:31.2]} 88. Kd2 {[%clk 0:00:08.6]} 88... Ng4
{[%clk 0:00:32.2]} 89. Kd3 {[%clk 0:00:07.3]} 89... Kg2 {[%clk 0:00:32.3]} 90.
Ke2 {[%clk 0:00:06.6]} 90... Nh2 {[%clk 0:00:32.2]} 91. Nxh2 {[%clk 0:00:07]}
91... Kxh2 {[%clk 0:00:33.1]} 92. Kxf2 {[%clk 0:00:08.3]} 1/2-1/2

[Event "*** Titled Tuesday Blitz"]
[Site "Chess.com"]
[Date "2018.09.04"]
[Round "4"]
[White "inegrepus"]
[Black "Aklanion"]
[Result "0-1"]
[WhiteElo "2203"]
[BlackElo "2124"]
[TimeControl "180+2"]
[EndTime "14:22:57 PDT"]
[Termination "Aklanion won by checkmate"]

1. d4 {[%clk 0:03:01.8]} 1... Nf6 {[%clk 0:02:58.3]} 2. c4 {[%clk 0:03:02.9]}
2... g6 {[%clk 0:02:59.8]} 3. Nc3 {[%clk 0:03:03.7]} 3... Bg7 {[%clk 0:03:01.3]}
4. e4 {[%clk 0:03:05.4]} 4... d6 {[%clk 0:03:02.6]} 5. f3 {[%clk 0:03:06.8]}
5... O-O {[%clk 0:03:02.5]} 6. Be3 {[%clk 0:03:08.4]} 6... Nc6 {[%clk
0:03:03.9]} 7. Qd2 {[%clk 0:03:09.2]} 7... a6 {[%clk 0:03:04.8]} 8. Nge2 {[%clk
0:03:10.1]} 8... Rb8 {[%clk 0:03:06.3]} 9. d5 {[%clk 0:03:11.3]} 9... Na5 {[%clk
0:03:04.2]} 10. Nd4 {[%clk 0:03:12.1]} 10... c5 {[%clk 0:03:04.4]} 11. Nc2
{[%clk 0:03:08]} 11... Bd7 {[%clk 0:02:59.3]} 12. a4 {[%clk 0:02:58.1]} 12...
Nb3 {[%clk 0:02:58.4]} 13. Qd1 {[%clk 0:02:58]} 13... Nxa1 {[%clk 0:02:58.9]}
14. Qxa1 {[%clk 0:02:59.2]} 14... Qa5 {[%clk 0:02:55.5]} 15. Bd2 {[%clk
0:02:58.8]} 15... Qc7 {[%clk 0:02:55.1]} 16. Be2 {[%clk 0:02:58.7]} 16... e6
{[%clk 0:02:56]} 17. O-O {[%clk 0:02:58.9]} 17... exd5 {[%clk 0:02:56.9]} 18.
exd5 {[%clk 0:03:00.1]} 18... Rfe8 {[%clk 0:02:55.1]} 19. Qd1 {[%clk 0:02:52]}
19... b5 {[%clk 0:02:44.1]} 20. f4 {[%clk 0:02:51.4]} 20... b4 {[%clk
0:02:29.8]} 21. Nb1 {[%clk 0:02:49.8]} 21... Bxa4 {[%clk 0:02:30.9]} 22. f5
{[%clk 0:02:50.2]} 22... Ne4 {[%clk 0:02:25.2]} 23. fxg6 {[%clk 0:02:41.9]}
23... hxg6 {[%clk 0:02:22.5]} 24. Bd3 {[%clk 0:02:38.9]} 24... Bd4+ {[%clk
0:02:19.9]} 25. Kh1 {[%clk 0:02:35.3]} 25... Nf2+ {[%clk 0:02:20.9]} 26. Rxf2
{[%clk 0:02:36.1]} 26... Bxf2 {[%clk 0:02:22.8]} 27. Qf3 {[%clk 0:02:33.5]}
27... Bxc2 {[%clk 0:02:06.4]} 28. Bxc2 {[%clk 0:02:35.4]} 28... Bd4 {[%clk
0:02:06.2]} 29. Bh6 {[%clk 0:02:29.4]} 29... Bg7 {[%clk 0:02:06]} 30. Bd2 {[%clk
0:02:29.5]} 30... Bxb2 {[%clk 0:02:01]} 31. h4 {[%clk 0:02:30.4]} 31... Qe7
{[%clk 0:01:59.7]} 32. g3 {[%clk 0:02:26.1]} 32... Qe2 {[%clk 0:01:59.5]} 33.
Qf4 {[%clk 0:02:23]} 33... Be5 {[%clk 0:01:57.1]} 34. Qh6 {[%clk 0:02:24]} 34...
Bxg3 {[%clk 0:01:51.8]} 35. Bc3 {[%clk 0:02:25]} 35... Qh2# {[%clk 0:01:51.3]}
0-1

[Event "*** Titled Tuesday Blitz"]
[Site "Chess.com"]
[Date "2018.09.04"]
[Round "4"]
[White "Nakachuk"]
[Black "Rodalquilar"]
[Result "0-1"]
[WhiteElo "2687"]
[BlackElo "2487"]
[TimeControl "180+2"]
[EndTime "14:23:01 PDT"]
[Termination "Rodalquilar won by checkmate"]

1. d4 {[%clk 0:03:01.9]} 1... Nf6 {[%clk 0:02:54.6]} 2. Bf4 {[%clk 0:03:03.2]}
2... d5 {[%clk 0:02:54.5]} 3. e3 {[%clk 0:03:04.3]} 3... c5 {[%clk 0:02:55.3]}
4. c3 {[%clk 0:03:05.7]} 4... Nc6 {[%clk 0:02:55.5]} 5. Nd2 {[%clk 0:03:07.1]}
5... Bf5 {[%clk 0:02:55.6]} 6. Qb3 {[%clk 0:03:07.7]} 6... Qc8 {[%clk
0:02:54.7]} 7. Ngf3 {[%clk 0:03:09]} 7... e6 {[%clk 0:02:54.2]} 8. Bb5 {[%clk
0:03:07.6]} 8... Be7 {[%clk 0:02:52.5]} 9. Ne5 {[%clk 0:03:07.8]} 9... O-O
{[%clk 0:02:53.1]} 10. Bxc6 {[%clk 0:03:08.4]} 10... bxc6 {[%clk 0:02:53.6]} 11.
Qa4 {[%clk 0:03:09.9]} 11... Nd7 {[%clk 0:02:41.6]} 12. Nxc6 {[%clk 0:03:07]}
12... Bf6 {[%clk 0:02:42.6]} 13. Ne5 {[%clk 0:02:54.5]} 13... Bxe5 {[%clk
0:02:37]} 14. Bxe5 {[%clk 0:02:48.7]} 14... Nxe5 {[%clk 0:02:36]} 15. dxe5
{[%clk 0:02:50.6]} 15... Bd3 {[%clk 0:02:37.6]} 16. f3 {[%clk 0:02:41.8]} 16...
Qb8 {[%clk 0:02:37.9]} 17. Qa3 {[%clk 0:02:41.6]} 17... c4 {[%clk 0:02:25.2]}
18. f4 {[%clk 0:02:40.3]} 18... Qb6 {[%clk 0:02:26.2]} 19. Kf2 {[%clk
0:02:38.4]} 19... f6 {[%clk 0:02:26.4]} 20. exf6 {[%clk 0:02:32]} 20... Rxf6
{[%clk 0:02:28.3]} 21. g3 {[%clk 0:02:28.4]} 21... e5 {[%clk 0:02:29.4]} 22. Kg2
{[%clk 0:02:28.3]} 22... Qxe3 {[%clk 0:02:26.4]} 23. Rhd1 {[%clk 0:02:14.7]}
23... exf4 {[%clk 0:02:14.3]} 24. Qa5 {[%clk 0:02:14.3]} 24... Rf5 {[%clk
0:01:46.8]} 25. Nf1 {[%clk 0:01:55.4]} 25... Be4+ {[%clk 0:01:41.5]} 26. Kh3
{[%clk 0:01:56.1]} 26... Rh5+ {[%clk 0:01:42.3]} 27. Kg4 {[%clk 0:01:56.5]}
27... Bf3# {[%clk 0:01:43.2]} 0-1

[Event "*** Titled Tuesday Blitz"]
[Site "Chess.com"]
[Date "2018.09.04"]
[Round "4"]
[White "Jbd735"]
[Black "chess_rehab"]
[Result "0-1"]
[WhiteElo "2316"]
[BlackElo "2240"]
[TimeControl "180+2"]
[EndTime "14:23:44 PDT"]
[Termination "chess_rehab won by checkmate"]

1. e4 {[%clk 0:03:01.9]} 1... c5 {[%clk 0:03:00.6]} 2. Nf3 {[%clk 0:03:02.5]}
2... d6 {[%clk 0:03:01.6]} 3. d4 {[%clk 0:03:03.4]} 3... cxd4 {[%clk 0:03:02.5]}
4. Nxd4 {[%clk 0:03:05.3]} 4... Nf6 {[%clk 0:03:03.3]} 5. Nc3 {[%clk 0:03:06.3]}
5... g6 {[%clk 0:03:04.8]} 6. Be3 {[%clk 0:03:03.6]} 6... Bg7 {[%clk 0:03:05.8]}
7. f3 {[%clk 0:03:04.1]} 7... Nc6 {[%clk 0:03:06.9]} 8. Qd2 {[%clk 0:03:02.7]}
8... O-O {[%clk 0:03:07.8]} 9. Bc4 {[%clk 0:03:03.2]} 9... Ne5 {[%clk 0:03:08]}
10. Bb3 {[%clk 0:03:03.3]} 10... Bd7 {[%clk 0:03:09.2]} 11. O-O-O {[%clk
0:03:03.9]} 11... Qa5 {[%clk 0:03:10.6]} 12. Kb1 {[%clk 0:03:02.3]} 12... Rfc8
{[%clk 0:03:10.8]} 13. h4 {[%clk 0:03:01.2]} 13... Rab8 {[%clk 0:03:10.3]} 14.
h5 {[%clk 0:02:57.8]} 14... Rxc3 {[%clk 0:03:09.3]} 15. bxc3 {[%clk 0:02:12]}
15... Nxh5 {[%clk 0:03:08.1]} 16. g4 {[%clk 0:02:09]} 16... Ng3 {[%clk
0:03:09.2]} 17. Rh3 {[%clk 0:01:48.7]} 17... Nxf3 {[%clk 0:03:06.8]} 18. Nxf3
{[%clk 0:01:45.9]} 18... Nxe4 {[%clk 0:03:07.4]} 19. Qh2 {[%clk 0:01:02.1]}
19... Nxc3+ {[%clk 0:03:04.7]} 20. Kc1 {[%clk 0:01:00]} 20... Nxd1 {[%clk
0:02:47.2]} 21. Kxd1 {[%clk 0:00:39.5]} 21... Bxg4 {[%clk 0:02:46.2]} 22. Qf4
{[%clk 0:00:23.1]} 22... Bxh3 {[%clk 0:02:33]} 23. Qxf7+ {[%clk 0:00:23.5]}
23... Kh8 {[%clk 0:02:33.8]} 24. Ng5 {[%clk 0:00:25.4]} 24... Bg4+ {[%clk
0:02:26.7]} 25. Kc1 {[%clk 0:00:19.6]} 25... Qe1# {[%clk 0:02:19.3]} 0-1

[Event "*** Titled Tuesday Blitz"]
[Site "Chess.com"]
[Date "2018.09.04"]
[Round "4"]
[White "b_6"]
[Black "lhavas"]
[Result "1-0"]
[WhiteElo "2389"]
[BlackElo "2306"]
[TimeControl "180+2"]
[EndTime "14:23:54 PDT"]
[Termination "b_6 won by resignation"]

1. d4 {[%clk 0:03:01.9]} 1... Nf6 {[%clk 0:03:00.2]} 2. Bf4 {[%clk 0:03:02.6]}
2... g6 {[%clk 0:03:00.7]} 3. Nc3 {[%clk 0:03:03.8]} 3... Bg7 {[%clk 0:03:02.1]}
4. e4 {[%clk 0:03:04.8]} 4... d6 {[%clk 0:03:03.6]} 5. Qd2 {[%clk 0:03:05.9]}
5... O-O {[%clk 0:03:03.3]} 6. O-O-O {[%clk 0:03:06.8]} 6... c6 {[%clk
0:03:04.1]} 7. Bh6 {[%clk 0:02:58.6]} 7... b5 {[%clk 0:03:02.2]} 8. Bd3 {[%clk
0:02:59.3]} 8... b4 {[%clk 0:03:01.5]} 9. Nce2 {[%clk 0:02:58.2]} 9... Qa5
{[%clk 0:02:54.2]} 10. Kb1 {[%clk 0:02:57.4]} 10... Be6 {[%clk 0:02:53.7]} 11.
Nc1 {[%clk 0:02:57.1]} 11... Nbd7 {[%clk 0:02:53.3]} 12. Bxg7 {[%clk 0:02:27.5]}
12... Kxg7 {[%clk 0:02:53.7]} 13. f4 {[%clk 0:02:28.6]} 13... Nb6 {[%clk
0:02:51.4]} 14. Nf3 {[%clk 0:02:23.6]} 14... Rab8 {[%clk 0:02:42.1]} 15. Nb3
{[%clk 0:02:11.4]} 15... Qa4 {[%clk 0:02:26.6]} 16. f5 {[%clk 0:02:03.6]} 16...
Bxb3 {[%clk 0:02:18.9]} 17. cxb3 {[%clk 0:02:03.9]} 17... Qa5 {[%clk 0:02:17.1]}
18. h4 {[%clk 0:01:50.8]} 18... h5 {[%clk 0:02:12.9]} 19. e5 {[%clk 0:01:45.2]}
19... dxe5 {[%clk 0:02:09.2]} 20. dxe5 {[%clk 0:01:45.2]} 20... Ng4 {[%clk
0:02:09.9]} 21. fxg6 {[%clk 0:01:28.1]} 21... fxg6 {[%clk 0:02:08.4]} 22. Qg5
{[%clk 0:01:26.4]} 22... Nxe5 {[%clk 0:01:32.4]} 23. Nxe5 {[%clk 0:01:22.4]}
23... Rf6 {[%clk 0:01:30.3]} 24. Bxg6 {[%clk 0:01:16.4]} 24... Rg8 {[%clk
0:01:21.3]} 25. Bf7+ {[%clk 0:01:09.5]} 1-0

[Event "*** Titled Tuesday Blitz"]
[Site "Chess.com"]
[Date "2018.09.04"]
[Round "4"]
[White "Arm-Akiba"]
[Black "farzadbfd"]
[Result "1-0"]
[WhiteElo "2757"]
[BlackElo "2532"]
[TimeControl "180+2"]
[EndTime "14:24:24 PDT"]
[Termination "Arm-Akiba won by resignation"]

1. d4 {[%clk 0:03:01.9]} 1... d5 {[%clk 0:03:00.1]} 2. c4 {[%clk 0:03:02.8]}
2... e6 {[%clk 0:03:00.5]} 3. Nf3 {[%clk 0:03:03.2]} 3... Nf6 {[%clk 0:03:00.4]}
4. Nc3 {[%clk 0:03:04.1]} 4... Be7 {[%clk 0:03:01.4]} 5. Bg5 {[%clk 0:03:04.4]}
5... O-O {[%clk 0:03:01.7]} 6. e3 {[%clk 0:02:59.9]} 6... h6 {[%clk 0:02:59.5]}
7. Bxf6 {[%clk 0:03:00.3]} 7... Bxf6 {[%clk 0:03:00]} 8. Rc1 {[%clk 0:03:01.3]}
8... c6 {[%clk 0:02:59.4]} 9. h4 {[%clk 0:03:01.4]} 9... g6 {[%clk 0:02:34.7]}
10. h5 {[%clk 0:02:54.7]} 10... g5 {[%clk 0:02:34.5]} 11. Bd3 {[%clk 0:02:55.8]}
11... Nd7 {[%clk 0:02:25]} 12. Bb1 {[%clk 0:02:55.4]} 12... Re8 {[%clk
0:02:22.7]} 13. Qc2 {[%clk 0:02:56.1]} 13... Nf8 {[%clk 0:02:23.2]} 14. Ne5
{[%clk 0:02:52.3]} 14... Bg7 {[%clk 0:02:07.9]} 15. f4 {[%clk 0:02:47.8]} 15...
gxf4 {[%clk 0:01:57.2]} 16. exf4 {[%clk 0:02:49.7]} 16... dxc4 {[%clk
0:01:57.8]} 17. O-O {[%clk 0:02:47.6]} 17... Qxd4+ {[%clk 0:01:55.1]} 18. Kh1
{[%clk 0:02:48.3]} 18... Bxe5 {[%clk 0:01:43.5]} 19. Rcd1 {[%clk 0:02:49]} 19...
Qe3 {[%clk 0:00:28.4]} 20. Rf3 {[%clk 0:02:38.9]} 20... Qxf3 {[%clk 0:00:24]}
21. gxf3 {[%clk 0:02:37.2]} 21... Bg7 {[%clk 0:00:22.7]} 22. Ne4 {[%clk
0:02:36]} 22... f5 {[%clk 0:00:21.6]} 23. Nd6 {[%clk 0:02:30.5]} 23... Re7
{[%clk 0:00:21.9]} 24. Qxc4 {[%clk 0:02:27.2]} 24... Bd7 {[%clk 0:00:21.4]} 25.
Nxf5 {[%clk 0:02:18.7]} 25... Rf7 {[%clk 0:00:19.6]} 26. Nd6 {[%clk 0:02:19]}
26... Re7 {[%clk 0:00:17.9]} 27. f5 {[%clk 0:02:19.7]} 27... b5 {[%clk
0:00:15.8]} 28. Qh4 {[%clk 0:02:18.7]} 28... Rae8 {[%clk 0:00:09.3]} 29. f6
{[%clk 0:02:18.1]} 1-0